bitfinex/quotes_ETHUSD_20250803
["timestamp","ask_amount","ask_price","bid_price","bid_amount"]
[1754233619476,0.4667,3467.9,3467.5,0.5951]
[1754233619679,30.9416,3467.8,3466.6,0.002]
[1754233619883,0.9416,3467.8,3466.8,0.4511]
[1754233620075,0.9416,3467.7,3466.8,0.4511]
[1754233620416,0.4667,3467.6,3466.9,4.536]
[1754233621913,10.0,3468.6,3467.0,0.02884338]
[1754233622148,1.49590316,3471.1,3467.0,0.02884338]
[1754233622149,0.4667,3467.9,3467.2,20.37227428]
[1754233622353,3.4749,3468.3,3467.3,0.4511]
[1754233622668,0.4667,3468.3,3467.4,4.533]
[1754233622816,0.4667,3468.3,3467.5,0.4511]
[1754233623213,0.4749,3468.2,3467.6,4.534]
[1754233623462,0.4667,3468.1,3467.6,4.534]
[1754233623663,0.4667,3468.0,3467.6,4.534]
[1754233623863,3.55,3467.8,3466.6,0.002]
[1754233624071,0.55,3467.4,3466.7,4.534]
[1754233624374,0.9416,3467.9,3466.2,0.002]
[1754233624375,0.55,3466.9,3466.2,0.002]
[1754233624663,40.0,3466.4,3466.2,0.002]
[1754233624819,3.0,3466.5,3466.2,0.002]
[1754233625017,30.9416,3466.3,3466.2,0.002]
[1754233625264,33.9416,3466.3,3466.2,0.002]
[1754233626191,33.55,3466.0,3465.9,0.12666432]
[1754233626328,33.55,3466.0,3464.2,0.4511]
[1754233626329,3.55,3465.9,3464.6,4.554]
[1754233626533,40.0,3465.6,3464.6,4.554]
[1754233626777,3.55,3465.7,3464.2,0.4511]
[1754233626778,3.0,3465.3,3464.2,0.4511]
[1754233626983,40.0,3465.2,3464.2,5.0391]
[1754233627133,31.63386487,3465.2,3463.1,3.0]
[1754233627333,0.69226487,3465.2,3464.6,0.4511]
[1754233627554,3.0,3465.1,3464.6,0.4511]
[1754233627761,3.0,3465.1,3465.0,0.45399]
[1754233627943,3.0,3465.1,3465.0,5.04599]
[1754233628146,3.0,3465.1,3465.0,0.00289]
[1754233628741,30.0,3465.4,3465.0,0.00289]
[1754233628956,0.4667,3465.5,3465.0,0.00289]
[1754233629166,0.4667,3465.4,3465.0,0.00289]
[1754233629749,0.144,3465.1,3465.0,0.00289]
[1754233630576,31.0856,3465.1,3465.0,0.00289]
[1754233630873,33.95384707,3465.1,3465.0,0.00289]
[1754233631436,36.95384707,3465.1,3465.0,0.00289]
[1754233632738,37.50384707,3465.1,3465.0,0.00289]
[1754233632942,36.95384707,3465.1,3465.0,0.00289]
[1754233633386,37.50384707,3465.1,3465.0,0.00289]
[1754233633690,36.95384707,3465.1,3465.0,0.00289]
[1754233635394,36.47894707,3465.1,3465.0,0.00289]
[1754233635703,1.43107363,3465.6,3465.0,0.00289]
[1754233635888,0.144,3465.1,3465.0,0.45399]
[1754233636686,0.144,3465.3,3465.0,0.45399]
[1754233636887,0.96437363,3465.6,3465.0,0.45399]
[1754233637066,0.144,3465.4,3465.0,0.73709]
[1754233637265,0.144,3465.4,3465.0,0.28599]
[1754233637469,0.96437363,3465.6,3465.1,0.7342]
[1754233637671,1.10837363,3465.6,3465.2,0.4511]
[1754233638059,1.10837363,3465.6,3465.3,0.4511]
[1754233638271,1.10837363,3465.6,3465.4,0.4511]
[1754233638487,1.10837363,3465.6,3465.1,0.4271]
[1754233638488,1.10837363,3465.6,3465.5,0.4511]
[1754233640094,0.96437363,3465.6,3465.5,0.4511]
[1754233640590,0.96437363,3465.6,3465.5,0.7342]
[1754233640762,10.0,3467.4,3465.5,0.76305586]
[1754233640978,0.4667,3467.0,3466.1,0.144]
[1754233641175,0.144,3466.7,3466.1,2.19562743]
[1754233641407,0.144,3466.7,3466.2,0.4511]
[1754233641710,0.144,3466.7,3466.3,4.611]
[1754233641906,0.144,3466.7,3466.4,0.4511]
[1754233642205,10.0,3468.2,3466.4,0.4511]
[1754233642206,30.0,3467.6,3466.5,0.4511]
[1754233642409,0.144,3467.5,3467.0,0.144]
[1754233642702,0.144,3467.5,3467.1,0.4511]
[1754233643024,0.144,3467.5,3467.2,0.4511]
[1754233643522,0.144,3467.5,3467.3,0.4511]
[1754233644118,0.144,3467.5,3467.0,4.755]
[1754233644322,0.144,3467.5,3467.4,0.4511]
[1754233644481,0.98568356,3468.3,3467.4,0.4511]
[1754233644682,0.144,3468.0,3467.5,0.02883922]
[1754233644894,0.144,3468.0,3467.4,0.144]
[1754233645086,0.144,3468.0,3467.6,0.4511]
[1754233645298,0.144,3468.0,3467.7,0.4511]
[1754233645771,0.144,3468.0,3467.8,0.4511]
[1754233647402,0.144,3468.0,3467.6,4.61]
[1754233647706,0.98568356,3468.3,3467.3,0.52061]
[1754233647707,30.9416,3467.9,3467.3,4.604]
[1754233647880,0.144,3467.6,3467.3,4.604]
[1754233648088,0.9416,3467.5,3466.8,4.604]
[1754233648302,0.144,3466.9,3466.8,4.604]
[1754233649504,0.9416,3467.5,3466.8,6.26471]
[1754233649690,0.144,3467.2,3466.8,6.26471]
[1754233649895,0.144,3467.2,3466.9,0.4615]
[1754233650216,0.144,3467.2,3467.0,4.608]
[1754233650987,0.144,3467.2,3466.8,1.19921]
[1754233651184,3.0,3467.9,3466.5,6.937]
[1754233651185,0.8829,3467.1,3466.5,6.937]
[1754233651494,0.144,3466.9,3466.5,6.937]
[1754233651834,0.144,3466.9,3466.6,5.0685]
[1754233653448,0.144,3466.9,3466.6,4.607]
[1754233653751,0.144,3466.9,3466.7,1.6303]
[1754233653903,3.8829,3467.7,3466.7,1.6303]
[1754233654100,0.144,3467.3,3466.8,0.6055]
[1754233654305,0.144,3467.7,3467.2,0.144]
[1754233654622,0.144,3467.7,3467.3,5.0625]
[1754233655002,0.144,3467.7,3467.4,0.4615]
[1754233655318,0.144,3467.9,3467.5,0.4615]
[1754233655846,0.144,3467.9,3467.4,0.144]
[1754233656064,0.144,3467.9,3467.6,0.4615]
[1754233656352,0.144,3467.9,3467.4,0.144]
[1754233656353,0.5722,3467.9,3467.7,4.6]
[1754233656647,0.4282,3467.8,3467.7,4.6]
[1754233656863,0.4282,3467.8,3467.4,0.144]
[1754233657043,0.98668356,3468.3,3467.6,4.599]
[1754233657349,0.8829,3467.7,3467.6,4.597]
[1754233657645,1.0269,3467.7,3467.6,4.597]
[1754233658224,30.0,3467.6,3466.9,0.144]
[1754233658455,1.0269,3467.7,3466.9,0.144]
[1754233658456,0.144,3467.4,3467.0,0.4615]
[1754233658746,0.144,3467.4,3467.1,0.4615]
[1754233659321,0.144,3467.4,3466.9,4.742]
[1754233659322,3.98668356,3468.3,3467.2,5.85895]
[1754233659517,0.144,3467.9,3467.3,0.144]
[1754233659711,0.144,3467.9,3467.3,0.6055]
[1754233662354,0.144,3467.9,3467.4,0.4615]
[1754233662534,0.144,3467.9,3467.5,0.571985]
[1754233662722,0.001,3468.3,3467.6,4.589]
[1754233662913,0.144,3468.0,3467.6,5.0505]
[1754233663625,0.144,3468.0,3467.7,0.4615]
[1754233667343,0.001,3468.3,3467.8,0.49033672]
[1754233667546,0.001,3468.3,3467.9,0.144]
[1754233668254,0.001,3468.3,3468.0,5.0405]
[1754233668662,0.001,3468.3,3468.0,4.579]
[1754233668847,0.001,3468.3,3468.1,0.4615]
[1754233669866,0.001,3468.3,3468.0,4.579]
[1754233670040,0.001,3468.3,3468.1,0.4723]
[1754233671132,0.001,3468.3,3468.1,0.9338]
[1754233671964,0.001,3468.3,3468.2,0.4615]
[1754233673158,0.001,3468.3,3468.2,21.26087428]
[1754233673365,0.8829,3469.4,3468.2,21.26087428]
[1754233673660,0.144,3469.2,3468.3,3.09271743]
[1754233673863,0.144,3469.2,3468.7,0.144]
[1754233674026,0.5722,3469.2,3468.7,5.1775]
[1754233674223,0.144,3469.2,3468.7,0.144]
[1754233674422,30.0,3469.0,3468.7,0.144]
[1754233674655,0.8829,3468.9,3468.7,0.144]
[1754233675039,1.0269,3468.8,3468.3,4.57]
[1754233675363,0.144,3468.6,3468.1,0.144]
[1754233675563,3.0,3469.3,3467.2,23.37227428]
[1754233675564,0.8829,3468.5,3468.0,4.571]
[1754233675737,1.0269,3468.4,3468.0,4.571]
[1754233675940,0.4282,3468.3,3468.0,4.571]
[1754233676142,0.144,3468.4,3468.0,5.08865]
[1754233676544,0.144,3468.4,3468.1,0.4615]
[1754233676738,0.144,3468.4,3467.9,0.144]
[1754233676938,0.8829,3468.3,3467.9,4.713]
[1754233677184,0.144,3468.4,3467.9,5.1843]
[1754233677462,0.5722,3468.4,3467.9,5.6458]
[1754233679362,0.5722,3468.4,3467.2,23.37227428]
[1754233679363,0.4388,3468.3,3468.0,4.567]
[1754233679555,3.0,3468.7,3468.0,4.567]
[1754233679556,0.144,3468.1,3468.0,4.567]
[1754233679892,0.5828,3468.1,3468.0,4.567]
[1754233680449,1.0346,3468.1,3467.9,4.563]
[1754233680672,0.5828,3468.1,3467.9,4.563]
[1754233680870,0.144,3468.1,3467.9,5.0337]
[1754233681074,3.0,3468.7,3468.0,0.4508]
[1754233681283,0.144,3468.5,3468.0,0.5948]
[1754233681491,0.144,3468.5,3468.0,0.144]
[1754233681691,0.144,3468.5,3468.1,0.4508]
[1754233681988,3.38931246,3468.8,3468.2,0.4508]
[1754233681989,2.95051246,3468.8,3468.2,0.4508]
[1754233682157,0.144,3468.6,3468.2,0.5948]
[1754233682750,0.5828,3468.6,3468.2,0.5948]
[1754233683076,0.144,3468.6,3468.2,0.5948]
[1754233683857,0.5828,3468.6,3468.2,0.5948]
[1754233684489,0.144,3468.6,3468.2,0.144]
[1754233684674,0.4388,3468.5,3468.2,0.144]
[1754233684995,0.4388,3468.4,3468.2,0.144]
[1754233685592,0.144,3468.6,3468.2,0.5948]
[1754233685953,0.144,3468.6,3468.2,0.144]
[1754233686160,3.0,3468.7,3468.3,0.4508]
[1754233686502,3.0,3468.7,3468.4,0.4508]
[1754233686707,3.0,3468.7,3468.2,0.6142]
[1754233686708,0.144,3468.8,3468.5,16.76720439]
[1754233686991,0.144,3468.8,3468.6,5.2889]
[1754233687200,0.144,3469.6,3468.7,2.30453044]
[1754233687390,0.144,3469.6,3468.9,16.46040439]
[1754233687800,0.144,3469.6,3468.9,17.19430439]
[1754233688487,0.144,3469.6,3468.9,16.91120439]
[1754233688688,0.144,3469.6,3468.9,0.5948]
[1754233690303,3.0,3470.1,3468.4,0.4508]
[1754233690596,10.0,3470.2,3468.2,0.4702]
[1754233690597,0.144,3468.7,3468.5,4.55]
[1754233690804,0.8906,3468.6,3468.5,4.55]
[1754233690962,0.8906,3468.6,3468.2,0.144]
[1754233691168,1.0346,3468.5,3468.2,4.552]
[1754233691380,0.4388,3468.4,3468.2,4.552]
[1754233692068,0.4388,3468.4,3468.1,0.144]
[1754233692403,0.4388,3468.3,3468.2,4.551]
[1754233693101,0.144,3468.5,3468.2,4.551]
[1754233693398,1.0346,3468.5,3468.2,4.551]
[1754233693606,0.4388,3468.4,3468.2,4.551]
[1754233693772,0.4518,3468.4,3468.2,4.551]
[1754233693974,0.4388,3468.3,3468.2,4.551]
[1754233694170,0.4388,3468.3,3467.3,0.2831]
[1754233694171,0.8906,3468.3,3468.0,0.144]
[1754233694492,0.144,3468.1,3467.8,4.547]
[1754233694690,0.4388,3468.0,3467.7,4.546]
[1754233695402,0.4388,3468.0,3467.7,5.015]
[1754233696814,0.144,3468.1,3467.8,0.02883672]
[1754233696978,0.144,3468.3,3467.9,0.144]
[1754233697499,0.144,3468.3,3467.9,0.5948]
[1754233697678,0.5828,3468.3,3467.9,0.5948]
[1754233697877,0.5828,3468.3,3467.9,0.144]
[1754233698101,0.8906,3468.2,3467.9,4.687]
[1754233698278,0.4388,3468.2,3467.9,4.687]
[1754233698620,0.4388,3468.2,3467.9,5.20078]
[1754233699906,0.8906,3468.2,3467.9,5.20078]
[1754233700223,0.4388,3468.2,3467.9,5.20078]
[1754233700708,0.144,3468.3,3467.9,5.65158]
[1754233701788,0.4388,3468.2,3467.9,5.20078]
[1754233702112,0.144,3468.3,3467.9,5.65158]
[1754233702496,0.144,3468.3,3468.0,1.015958]
[1754233702704,0.001,3468.6,3468.0,1.015958]
[1754233703019,0.144,3468.5,3468.0,1.015958]
[1754233703171,0.144,3468.5,3468.0,0.565158]
[1754233703377,0.144,3468.5,3468.1,0.4508]
[1754233703680,0.144,3468.5,3468.1,1.0210958]
[1754233703898,0.144,3468.5,3468.2,0.4508]
[1754233704787,0.144,3468.5,3468.1,0.5702958]
[1754233704993,0.5828,3468.5,3468.1,0.5702958]
[1754233706083,0.5828,3468.5,3468.1,1.0210958]
[1754233706409,0.144,3468.5,3468.1,1.0210958]
[1754233706608,0.4388,3468.4,3467.9,4.687]
[1754233706912,0.4388,3468.4,3467.9,5.1378]
[1754233707229,0.4388,3468.4,3468.0,0.4508]
[1754233707586,0.8906,3468.3,3467.9,4.687]
[1754233707979,0.4388,3468.3,3467.9,5.1378]
[1754233708181,0.4388,3468.3,3467.9,5.65158]
[1754233708716,0.4388,3468.3,3467.9,21.52284859]
[1754233708884,0.144,3468.5,3468.0,0.4879]
[1754233709081,0.144,3468.5,3468.1,0.4879]
[1754233709816,0.144,3468.5,3467.9,21.52284859]
[1754233710021,0.6152,3468.5,3467.9,22.01074859]
[1754233711018,0.144,3468.5,3468.0,2.59132123]
[1754233711190,0.144,3468.5,3468.0,1.82032123]
[1754233711518,0.4712,3468.4,3468.0,2.30822123]
[1754233711716,0.144,3468.5,3468.0,1.82032123]
[1754233712015,0.4712,3468.4,3468.0,2.30822123]
[1754233712717,0.144,3468.5,3467.9,21.52284859]
[1754233712923,0.4712,3468.3,3467.9,16.97984859]
[1754233713091,0.4712,3468.3,3468.0,4.521]
[1754233714587,0.4712,3468.3,3468.0,5.0089]
[1754233715123,0.144,3468.5,3468.0,5.0089]
[1754233715416,0.144,3468.5,3468.1,0.4879]
[1754233715617,0.144,3468.5,3468.0,4.521]
[1754233715790,0.144,3468.5,3468.2,0.4879]
[1754233716611,0.4712,3468.4,3468.2,4.515]
[1754233717738,0.4712,3468.4,3467.9,17.46774859]
[1754233718037,0.4712,3468.4,3468.0,5.0019]
[1754233718513,0.4712,3468.4,3468.0,5.0039]
[1754233719035,0.9338,3468.3,3468.0,0.002]
[1754233719419,0.144,3468.1,3468.0,0.002]
[1754233719716,1.0778,3468.1,3468.0,0.002]
[1754233722020,0.144,3468.1,3468.0,0.002]
[1754233722703,0.4712,3468.4,3468.0,0.002]
[1754233722943,0.144,3468.2,3468.0,0.002]
[1754233723233,0.6152,3468.2,3468.0,0.002]
[1754233723609,30.9338,3468.1,3468.0,0.002]
[1754233723818,40.0,3467.9,3466.5,7.4249]
[1754233724033,0.144,3466.9,3466.8,4.509]
[1754233724429,1.0778,3466.9,3466.8,4.509]
[1754233725008,3.0,3467.6,3466.8,4.9969]
[1754233725009,30.0,3467.5,3466.8,4.9969]
[1754233725212,0.144,3467.2,3466.9,16.80996859]
[1754233725730,0.144,3467.3,3467.0,0.4879]
[1754233725907,0.144,3467.3,3467.1,0.4879]
[1754233726308,0.144,3467.3,3467.1,4.9959]
[1754233726504,0.9338,3467.6,3467.1,4.9959]
[1754233726743,0.144,3467.5,3467.2,0.4879]
[1754233727954,0.144,3467.5,3467.1,4.508]
[1754233728157,0.144,3467.5,3467.3,0.4879]
[1754233728572,3.144,3467.7,3467.4,0.4879]
[1754233728749,3.6152,3467.7,3467.2,0.144]
[1754233728922,0.9338,3467.6,3467.2,0.144]
[1754233729460,0.9338,3467.5,3467.2,0.144]
[1754233729674,30.0,3467.4,3467.2,0.144]
[1754233729825,10.60945125,3467.6,3467.2,0.144]
[1754233729826,33.4626,3467.3,3467.2,0.144]
[1754233730024,3.0,3467.1,3466.8,0.002]
[1754233730320,3.70516269,3467.3,3466.8,0.002]
[1754233730321,0.144,3466.9,3466.8,0.002]
[1754233730721,1.0778,3466.9,3466.8,0.002]
[1754233733237,34.0778,3466.9,3466.8,0.002]
[1754233734232,38.5848,3466.9,3466.8,0.002]
[1754233735564,41.53531246,3466.9,3466.8,0.002]
[1754233735770,44.40355953,3466.9,3466.8,0.002]
[1754233736470,39.89655953,3466.9,3466.8,0.002]
[1754233736630,44.40055953,3466.9,3466.8,0.002]
[1754233740470,39.89655953,3466.9,3466.8,0.002]
[1754233740671,44.40055953,3466.9,3466.8,0.002]
[1754233743043,10.59851246,3466.9,3466.8,0.002]
[1754233743242,6.09451246,3466.9,3466.8,0.4965]
[1754233743443,10.59851246,3466.9,3466.8,0.4965]
[1754233744152,6.09451246,3466.9,3466.8,0.4965]
[1754233746083,5.95051246,3466.9,3466.8,0.4965]
[1754233746972,4.504,3467.0,3466.8,0.4965]
[1754233747158,2.95051246,3467.9,3466.8,0.4965]
[1754233747159,4.504,3467.4,3466.8,0.7816]
[1754233747352,3.0,3467.3,3466.9,0.4945]
[1754233749066,3.0,3467.3,3467.0,0.4945]
[1754233749284,3.0,3467.3,3467.1,0.4445]
[1754233749491,3.0,3467.3,3466.8,0.002]
[1754233749857,0.4368,3467.6,3466.8,0.2871]
[1754233750155,3.0,3467.4,3466.8,0.2871]
[1754233750354,3.0,3467.4,3466.8,0.002]
[1754233750562,3.0,3467.2,3466.8,0.002]
[1754233750763,1.15759637,3467.6,3466.8,0.002]
[1754233750986,3.0,3467.4,3466.8,0.002]
[1754233751157,3.0,3467.2,3466.8,0.002]
[1754233751358,3.0,3467.2,3466.9,0.4945]
[1754233751568,3.0,3467.2,3467.0,0.4945]
[1754233752385,30.4368,3467.7,3466.8,0.002]
[1754233752590,3.0,3467.4,3466.9,0.4945]
[1754233752786,3.0,3467.2,3466.9,0.4945]
[1754233753274,3.4368,3467.2,3466.8,0.002]
[1754233753481,3.9073,3467.2,3466.8,0.002]
[1754233753885,4.9398,3467.2,3466.8,0.002]
[1754233754065,3.9073,3467.1,3466.8,0.002]
[1754233754718,3.0,3466.9,3466.8,0.002]
[1754233755066,3.9073,3466.9,3466.8,0.002]
[1754233755281,33.9073,3466.9,3466.8,0.002]
[1754233755480,36.85781246,3466.9,3466.8,0.002]
[1754233755666,39.72605953,3466.9,3466.8,0.002]
[1754233755865,39.87005953,3466.9,3466.8,0.002]
[1754233757375,10.59751246,3466.9,3466.8,0.002]
[1754233757679,6.09451246,3466.9,3466.8,0.002]
[1754233757882,10.59751246,3466.9,3466.8,0.002]
[1754233758515,11.50481246,3466.9,3466.8,0.002]
[1754233759017,10.59751246,3466.9,3466.8,0.002]
[1754233759384,12.65529371,3466.9,3466.8,0.002]
[1754233759583,42.65529371,3466.9,3466.8,0.002]
[1754233766194,38.15229371,3466.9,3466.8,0.002]
[1754233766393,42.65529371,3466.9,3466.8,0.002]
[1754233771223,37.24499371,3466.9,3466.8,0.002]
[1754233771425,6.09451246,3466.9,3466.8,0.482]
[1754233771606,10.59751246,3466.9,3466.8,0.482]
[1754233772029,6.09451246,3466.9,3466.8,0.482]
[1754233772928,10.59751246,3466.9,3466.8,0.7671]
[1754233773129,3.09451246,3466.9,3466.8,0.7671]
[1754233773325,2.95051246,3466.9,3466.8,0.7671]
[1754233773630,2.95051246,3466.9,3466.8,0.482]
[1754233773794,42.54334588,3466.9,3466.8,0.002]
[1754233774510,39.54334588,3466.9,3466.8,0.002]
[1754233774711,42.15226371,3466.9,3466.8,0.002]
[1754233775294,42.54334588,3466.9,3466.8,0.002]
[1754233775495,42.70226371,3466.9,3466.8,0.002]
[1754233776596,43.09334588,3466.9,3466.8,0.002]
[1754233776798,37.10134588,3466.9,3466.8,0.002]
[1754233777049,40.45251246,3466.9,3466.8,0.002]
[1754233778102,35.95051246,3466.9,3466.8,0.002]
[1754233778347,10.45251246,3466.9,3466.8,0.002]
[1754233778544,5.95051246,3466.9,3466.8,0.482]
[1754233778718,7.59651246,3466.9,3466.8,0.482]
[1754233779412,0.144,3466.9,3466.8,0.482]
[1754233779606,4.646,3466.9,3466.8,0.7671]
[1754233779936,4.646,3466.9,3466.8,0.482]
[1754233780107,5.9056,3466.9,3466.8,0.002]
[1754233780307,38.9056,3466.9,3466.8,0.002]
[1754233781911,37.9666,3466.9,3466.8,0.002]
[1754233782638,33.0,3466.9,3466.8,0.002]
[1754233782839,4.502,3466.9,3466.8,0.482]
[1754233783345,4.502,3467.0,3466.8,0.482]
[1754233783953,3.0,3467.4,3466.8,0.7671]
[1754233784106,4.502,3467.3,3466.8,0.2871]
[1754233784303,4.502,3467.3,3466.9,0.48]
[1754233784507,4.502,3467.3,3467.0,0.48]
[1754233785607,3.0,3467.4,3467.0,0.48]
[1754233785905,4.502,3467.3,3467.0,0.48]
[1754233786103,4.502,3467.3,3466.8,0.002]
[1754233786104,16.48625125,3467.3,3466.8,0.002]
[1754233786310,0.939,3467.2,3466.8,0.002]
[1754233786505,5.54725125,3467.3,3466.8,0.002]
[1754233786506,4.501,3467.1,3466.9,0.48]
[1754233786717,4.501,3467.1,3467.0,0.48]
[1754233787040,4.501,3467.1,3466.8,0.002]
[1754233787831,0.4625,3467.0,3466.8,0.002]
[1754233788039,4.501,3466.9,3466.8,0.002]
[1754233788209,5.44,3466.9,3466.8,0.002]
[1754233788409,8.44,3466.9,3466.8,0.002]
[1754233788941,38.44,3466.9,3466.8,0.002]
[1754233789245,41.94051246,3466.9,3466.8,0.002]
[1754233789417,44.80875953,3466.9,3466.8,0.002]
[1754233790345,44.95275953,3466.9,3466.8,0.002]
[1754233791108,40.45175953,3466.9,3466.8,0.002]
[1754233791311,44.95275953,3466.9,3466.8,0.002]
[1754233791511,39.90175953,3466.9,3466.8,0.002]
[1754233791710,44.40275953,3466.9,3466.8,0.002]
[1754233794116,44.95275953,3466.9,3466.8,0.002]
[1754233797921,45.73381234,3466.9,3466.8,0.002]
[1754233802248,0.55,3466.5,3465.3,0.4827]
[1754233802435,0.8392,3466.7,3465.0,0.48559]
[1754233802436,3.55,3466.1,3465.0,0.48559]
[1754233802638,3.0,3465.7,3465.0,0.48559]
[1754233802837,40.0,3465.4,3465.0,0.48559]
[1754233803162,30.0,3465.2,3465.0,0.00289]
[1754233803342,34.501,3465.1,3465.0,0.00289]
[1754233803862,30.0,3465.1,3465.0,0.00289]
[1754233804038,4.501,3465.1,3465.0,0.77069]
[1754233804237,34.501,3465.1,3465.0,0.48559]
[1754233805330,30.0,3465.2,3465.0,0.48559]
[1754233805531,0.355,3465.8,3465.0,0.48559]
[1754233805532,3.0,3466.0,3465.1,0.2851]
[1754233805865,30.0,3465.8,3465.2,0.4827]
[1754233806165,3.0,3465.6,3465.2,0.4827]
[1754233806360,3.0,3465.4,3465.2,0.7678]
[1754233806566,10.0,3466.1,3465.0,0.00289]
[1754233806567,10.0,3466.1,3465.3,0.7678]
[1754233806727,40.0,3465.9,3465.3,0.2851]
[1754233806932,3.0,3465.5,3465.4,0.4827]
[1754233807145,4.501,3465.5,3465.4,0.4827]
[1754233807339,30.0,3465.9,3465.4,0.7678]
[1754233807637,30.0,3465.9,3465.0,0.00289]
[1754233807638,4.501,3465.8,3465.5,0.7678]
[1754233807854,4.501,3465.8,3465.6,0.4827]
[1754233809472,4.501,3465.8,3465.2,0.2851]
[1754233809636,3.0,3465.9,3465.7,0.4827]
[1754233809957,33.0,3465.9,3465.8,0.4827]
[1754233810158,3.0,3465.7,3465.5,0.4827]
[1754233810364,1.44872,3466.0,3465.5,0.4827]
[1754233810365,4.501,3465.6,3465.5,0.2851]
[1754233810582,0.55,3466.3,3465.5,0.2851]
[1754233810583,4.501,3465.7,3465.5,0.2851]
[1754233811082,4.501,3465.7,3465.0,0.00289]
[1754233811288,4.501,3465.7,3465.5,0.4827]
[1754233811432,4.501,3465.7,3465.0,0.00289]
[1754233811627,30.0,3465.6,3465.1,0.4827]
[1754233811935,30.0,3465.6,3465.0,0.00289]
[1754233811936,4.5,3465.5,3465.2,0.4827]
[1754233812364,0.144,3465.3,3465.0,0.00289]
[1754233812556,0.144,3465.1,3465.0,0.00289]
[1754233813646,34.644,3465.1,3465.0,0.00289]
[1754233813851,35.0856,3465.1,3465.0,0.00289]
[1754233814249,41.44944707,3465.1,3465.0,0.00289]
[1754233816070,41.93214707,3465.1,3465.0,0.00289]
[1754233817440,41.43654707,3465.1,3465.0,0.00289]
[1754233817640,40.99494707,3465.1,3465.0,0.00289]
[1754233818070,3.6267,3465.1,3465.0,0.00289]
[1754233818370,3.144,3465.1,3465.0,0.00289]
[1754233819640,7.644,3465.1,3465.0,0.00289]
[1754233820374,38.5812,3465.1,3465.0,0.00289]
[1754233822937,34.0812,3465.1,3465.0,0.00289]
[1754233823152,41.44944707,3465.1,3465.0,0.00289]
[1754233823843,36.45384707,3465.1,3465.0,0.00289]
[1754233824048,40.95384707,3465.1,3465.0,0.00289]
[1754233824443,41.44944707,3465.1,3465.0,0.00289]
[1754233825677,41.99944707,3465.1,3465.0,0.00289]
[1754233825876,41.99944707,3465.1,3465.0,0.00489]
[1754233826857,42.28454707,3465.1,3465.0,0.00489]
[1754233827053,41.27105344,3465.1,3465.0,0.00489]
[1754233827280,45.23305953,3465.1,3465.0,0.00489]
[1754233827954,40.73305953,3465.1,3465.0,0.00489]
[1754233828156,45.23305953,3465.1,3465.0,0.00489]
[1754233829407,44.73745953,3465.1,3465.0,0.00489]
[1754233829703,37.59251246,3465.1,3465.0,0.00489]
[1754233829901,33.09251246,3465.1,3465.0,0.00489]
[1754233830201,42.08301246,3465.1,3465.0,0.00489]
[1754233830574,40.59251246,3465.1,3465.0,0.00489]
[1754233832703,36.09251246,3465.1,3465.0,0.00489]
[1754233833010,36.09251246,3465.1,3465.0,0.48549]
[1754233833191,40.59251246,3465.1,3465.0,0.48549]
[1754233833397,36.09251246,3465.1,3465.0,0.48549]
[1754233833713,10.59251246,3465.1,3465.0,0.77059]
[1754233834204,0.39108217,3466.5,3465.0,0.77059]
[1754233834205,10.0,3466.3,3465.0,0.77059]
[1754233834405,4.5,3466.2,3465.1,0.79455919]
[1754233834630,4.5,3466.2,3465.0,0.00489]
[1754233834631,0.144,3465.9,3465.3,0.144]
[1754233834983,0.144,3465.9,3465.4,0.4806]
[1754233835201,0.144,3465.9,3465.5,0.2851]
[1754233835583,0.144,3465.9,3465.6,0.4806]
[1754233835788,0.144,3466.2,3465.7,0.4291]
[1754233835987,0.001,3466.8,3465.8,0.7657]
[1754233836204,0.144,3466.4,3465.9,0.6246]
[1754233836514,0.144,3466.4,3466.0,0.7657]
[1754233837017,0.144,3466.4,3465.9,0.144]
[1754233837018,0.001,3466.8,3466.1,0.7657]
[1754233837223,0.001,3466.8,3466.4,0.144]
[1754233837592,0.001,3466.8,3466.5,0.7657]
[1754233838085,0.001,3466.8,3466.4,0.144]
[1754233838279,0.001,3466.8,3466.6,0.7657]
[1754233838826,0.001,3466.8,3466.7,0.7657]
[1754233839318,0.001,3466.8,3466.7,0.9097]
[1754233840200,0.001,3466.8,3466.7,1.4597]
[1754233840382,0.001,3466.8,3466.7,1.90855484]
[1754233840736,0.001,3466.8,3466.7,6.40655484]
[1754233841017,0.001,3467.2,3466.7,6.40655484]
[1754233841218,0.001,3467.2,3466.8,5.2637]
[1754233841379,0.001,3467.2,3467.1,0.144]
[1754233841809,0.001,3467.2,3467.1,0.9097]
[1754233841981,0.001,3467.2,3467.1,1.45047]
[1754233843585,0.4664,3467.2,3467.1,0.54077]